[Event "Titled Tuesday Blitz July 13 2021"]
[White "Dobrowolski, Piotr"]
[Black "Mirzoev, Azer"]
[WhiteFideId "1106236"]
[BlackFideId "13400304"]
[WhiteElo "2304"]
[BlackElo "2525"]
[Result "1/2-1/2"]
[Round "09"]
[TimeControl "180+1"]
[Date "2021.07.13"]
[WhiteClock "0:00:15"]
[BlackClock "0:00:28"]

1. e4 {[%clk 0:02:54]}  c6 {[%clk 0:03:00]} 2. c4 {[%clk 0:02:52]}  d5 {[%clk 0:03:01]} 3. cxd5 {[%clk 0:02:52]}  cxd5 {[%clk 0:03:02]} 4. exd5 {[%clk 0:02:53]}  Nf6 {[%clk 0:03:02]} 5. Nc3 {[%clk 0:02:53]}  Nxd5 {[%clk 0:03:01]} 6. Nf3 {[%clk 0:02:53]}  e6 {[%clk 0:03:02]} 7. d4 {[%clk 0:02:49]}  Nc6 {[%clk 0:03:01]} 8. Bd3 {[%clk 0:02:47]}  Be7 {[%clk 0:03:01]} 9. O-O {[%clk 0:02:47]}  Nf6 {[%clk 0:03:01]} 10. a3 {[%clk 0:02:43]}  O-O {[%clk 0:03:01]} 11. Re1 {[%clk 0:02:38]}  b6 {[%clk 0:03:00]} 12. Bc2 {[%clk 0:02:36]}  Bb7 {[%clk 0:02:59]} 13. Bg5 {[%clk 0:02:27]}  Nd5 {[%clk 0:02:49]} 14. Qd3 {[%clk 0:02:23]}  g6 {[%clk 0:02:49]} 15. Bh6 {[%clk 0:02:20]}  Re8 {[%clk 0:02:49]} 16. Bb3 {[%clk 0:02:05]}  Nxc3 {[%clk 0:02:34]} 17. bxc3 {[%clk 0:02:03]}  Bf8 {[%clk 0:02:34]} 18. Qd2 {[%clk 0:01:43]}  Bg7 {[%clk 0:02:19]} 19. Qf4 {[%clk 0:01:26]}  Qf6 {[%clk 0:02:03]} 20. Qc1 {[%clk 0:00:22]}  Bxh6 {[%clk 0:01:31]} 21. Qxh6 {[%clk 0:00:21]}  Na5 {[%clk 0:01:32]} 22. Ba4 {[%clk 0:00:19]}  Bc6 {[%clk 0:01:23]} 23. Bxc6 {[%clk 0:00:18]}  Nxc6 {[%clk 0:01:23]} 24. Ne5 {[%clk 0:00:18]}  Nxe5 {[%clk 0:01:23]} 25. Rxe5 {[%clk 0:00:19]}  Rac8 {[%clk 0:01:23]} 26. Qe3 {[%clk 0:00:19]}  Red8 {[%clk 0:01:21]} 27. Re1 {[%clk 0:00:18]}  Rd6 {[%clk 0:01:15]} 28. g3 {[%clk 0:00:18]}  Rdc6 {[%clk 0:01:15]} 29. Rc1 {[%clk 0:00:17]}  Kg7 {[%clk 0:01:11]} 30. h4 {[%clk 0:00:17]}  h5 {[%clk 0:01:11]} 31. a4 {[%clk 0:00:16]}  a6 {[%clk 0:01:10]} 32. d5 {[%clk 0:00:14]}  exd5 {[%clk 0:01:09]} 33. Rxd5 {[%clk 0:00:14]}  Rc5 {[%clk 0:01:09]} 34. Rxc5 {[%clk 0:00:14]}  Rxc5 {[%clk 0:01:09]} 35. Rb1 {[%clk 0:00:14]}  Rc6 {[%clk 0:01:02]} 36. c4 {[%clk 0:00:12]}  a5 {[%clk 0:00:57]} 37. Rb5 {[%clk 0:00:12]}  Rxc4 {[%clk 0:00:52]} 38. Rxb6 {[%clk 0:00:11]}  Qa1+ {[%clk 0:00:51]} 39. Kg2 {[%clk 0:00:10]}  Rc1 {[%clk 0:00:51]} 40. Qb3 {[%clk 0:00:07]}  Rg1+ {[%clk 0:00:48]} 41. Kf3 {[%clk 0:00:08]}  Rc1 {[%clk 0:00:39]} 42. Qb2+ {[%clk 0:00:07]}  Qxb2 {[%clk 0:00:38]} 43. Rxb2 {[%clk 0:00:08]}  Rc4 {[%clk 0:00:38]} 44. Rb6 {[%clk 0:00:08]}  Rxa4 {[%clk 0:00:38]} 45. Ra6 {[%clk 0:00:08]}  Ra2 {[%clk 0:00:36]} 46. Ke3 {[%clk 0:00:08]}  a4 {[%clk 0:00:36]} 47. Kf3 {[%clk 0:00:08]}  a3 {[%clk 0:00:35]} 48. Ke3 {[%clk 0:00:09]}  Kf8 {[%clk 0:00:34]} 49. Kf3 {[%clk 0:00:08]}  Ke7 {[%clk 0:00:34]} 50. Ke3 {[%clk 0:00:09]}  Ra1 {[%clk 0:00:34]} 51. Kf3 {[%clk 0:00:08]}  Kd7 {[%clk 0:00:34]} 52. Ra7+ {[%clk 0:00:07]}  Ke6 {[%clk 0:00:34]} 53. Kf4 {[%clk 0:00:07]}  f6 {[%clk 0:00:31]} 54. Kf3 {[%clk 0:00:07]}  a2 {[%clk 0:00:30]} 55. Kg2 {[%clk 0:00:07]}  Kd5 {[%clk 0:00:30]} 56. Ra5+ {[%clk 0:00:07]}  Kc4 {[%clk 0:00:30]} 57. Ra8 {[%clk 0:00:08]}  Kd5 {[%clk 0:00:28]} 58. Rd8+ {[%clk 0:00:08]}  Ke6 {[%clk 0:00:28]} 59. Ra8 {[%clk 0:00:09]}  g5 {[%clk 0:00:28]} 60. Ra6+ {[%clk 0:00:07]}  Kd5 {[%clk 0:00:27]} 61. hxg5 {[%clk 0:00:07]}  fxg5 {[%clk 0:00:27]} 62. Ra5+ {[%clk 0:00:07]}  Ke4 {[%clk 0:00:26]} 63. Ra4+ {[%clk 0:00:08]}  Kd3 {[%clk 0:00:26]} 64. Ra8 {[%clk 0:00:08]}  h4 {[%clk 0:00:26]} 65. gxh4 {[%clk 0:00:08]}  gxh4 {[%clk 0:00:26]} 66. f4 {[%clk 0:00:08]}  Ke4 {[%clk 0:00:26]} 67. f5 {[%clk 0:00:09]}  Kxf5 {[%clk 0:00:26]} 68. Rf8+ {[%clk 0:00:09]}  Kg4 {[%clk 0:00:25]} 69. Rg8+ {[%clk 0:00:09]}  Kf4 {[%clk 0:00:26]} 70. Ra8 {[%clk 0:00:10]}  h3+ {[%clk 0:00:25]} 71. Kh2 {[%clk 0:00:10]}  Ke4 {[%clk 0:00:25]} 72. Re8+ {[%clk 0:00:10]}  Kd5 {[%clk 0:00:24]} 73. Ra8 {[%clk 0:00:11]}  Kc4 {[%clk 0:00:25]} 74. Rc8+ {[%clk 0:00:10]}  Kb3 {[%clk 0:00:25]} 75. Rb8+ {[%clk 0:00:11]}  Kc3 {[%clk 0:00:25]} 76. Rc8+ {[%clk 0:00:11]}  Kd3 {[%clk 0:00:25]} 77. Rd8+ {[%clk 0:00:11]}  Ke3 {[%clk 0:00:25]} 78. Re8+ {[%clk 0:00:11]}  Kf4 {[%clk 0:00:25]} 79. Rf8+ {[%clk 0:00:12]}  Kg4 {[%clk 0:00:24]} 80. Ra8 {[%clk 0:00:13]}  Kf3 {[%clk 0:00:23]} 81. Rf8+ {[%clk 0:00:13]}  Ke4 {[%clk 0:00:23]} 82. Re8+ {[%clk 0:00:13]}  Kd5 {[%clk 0:00:24]} 83. Rd8+ {[%clk 0:00:13]}  Kc6 {[%clk 0:00:25]} 84. Ra8 {[%clk 0:00:14]}  Kb7 {[%clk 0:00:26]} 85. Ra3 {[%clk 0:00:14]}  Kb6 {[%clk 0:00:26]} 86. Ra8 {[%clk 0:00:14]}  Kb5 {[%clk 0:00:26]} 87. Rb8+ {[%clk 0:00:14]}  Ka4 {[%clk 0:00:26]} 88. Ra8+ {[%clk 0:00:14]}  Kb4 {[%clk 0:00:27]} 89. Rb8+ {[%clk 0:00:14]}  Ka4 {[%clk 0:00:27]} 90. Ra8+ {[%clk 0:00:15]}  Kb4 {[%clk 0:00:28]} 91. Rb8+ {[%clk 0:00:15]}  Ka4 {[%clk 0:00:28]} 1/2-1/2


[Site "https://www.chess.com"]

[Event "Titled Tuesday Blitz July 13 2021"]
[White "Dudzinski, Pawel"]
[Black "Gabdushev, Ruslan"]
[WhiteFideId "1117890"]
[BlackFideId "4137833"]
[WhiteElo "2193"]
[BlackElo "2312"]
[Result "0-1"]
[Round "09"]
[TimeControl "180+1"]
[Date "2021.07.13"]
[WhiteClock "0:00:09"]
[BlackClock "0:00:08"]

1. e4 {[%clk 0:03:00]}  Nc6 {[%clk 0:02:59]} 2. d4 {[%clk 0:02:57]}  d5 {[%clk 0:02:59]} 3. e5 {[%clk 0:02:57]}  Bf5 {[%clk 0:02:58]} 4. f4 {[%clk 0:02:57]}  Qd7 {[%clk 0:02:57]} 5. Bd3 {[%clk 0:02:57]}  Nxd4 {[%clk 0:02:50]} 6. c3 {[%clk 0:02:55]}  Bxd3 {[%clk 0:02:45]} 7. Qxd3 {[%clk 0:02:56]}  Nc6 {[%clk 0:02:45]} 8. Be3 {[%clk 0:02:55]}  e6 {[%clk 0:02:42]} 9. Nf3 {[%clk 0:02:55]}  Nge7 {[%clk 0:02:34]} 10. Nbd2 {[%clk 0:02:56]}  Nf5 {[%clk 0:02:32]} 11. Bf2 {[%clk 0:02:56]}  h5 {[%clk 0:02:31]} 12. g3 {[%clk 0:02:52]}  a6 {[%clk 0:02:21]} 13. h3 {[%clk 0:02:52]}  Be7 {[%clk 0:02:17]} 14. O-O-O {[%clk 0:02:51]}  O-O-O {[%clk 0:02:15]} 15. g4 {[%clk 0:02:52]}  Nh6 {[%clk 0:02:03]} 16. Rdg1 {[%clk 0:02:49]}  g6 {[%clk 0:01:48]} 17. Nb3 {[%clk 0:02:43]}  Kb8 {[%clk 0:01:23]} 18. Nbd4 {[%clk 0:02:34]}  Nxd4 {[%clk 0:01:19]} 19. Bxd4 {[%clk 0:02:21]}  c5 {[%clk 0:01:17]} 20. Bf2 {[%clk 0:02:17]}  Qa4 {[%clk 0:01:15]} 21. Be3 {[%clk 0:01:46]}  Qxa2 {[%clk 0:01:09]} 22. f5 {[%clk 0:01:39]}  hxg4 {[%clk 0:00:54]} 23. hxg4 {[%clk 0:01:35]}  Qa1+ {[%clk 0:00:41]} 24. Kc2 {[%clk 0:01:33]}  Qa4+ {[%clk 0:00:39]} 25. b3 {[%clk 0:00:58]}  Qa2+ {[%clk 0:00:38]} 26. Kc1 {[%clk 0:00:58]}  Nxg4 {[%clk 0:00:17]} 27. Rxh8 {[%clk 0:00:52]}  Rxh8 {[%clk 0:00:16]} 28. Rxg4 {[%clk 0:00:52]}  gxf5 {[%clk 0:00:16]} 29. Rg1 {[%clk 0:00:48]}  Qxb3 {[%clk 0:00:14]} 30. Qc2 {[%clk 0:00:47]}  Qa3+ {[%clk 0:00:12]} 31. Qb2 {[%clk 0:00:46]}  Qa4 {[%clk 0:00:12]} 32. Ng5 {[%clk 0:00:41]}  Bxg5 {[%clk 0:00:08]} 33. Bxg5 {[%clk 0:00:37]}  Ka7 {[%clk 0:00:07]} 34. Be3 {[%clk 0:00:34]}  b6 {[%clk 0:00:07]} 35. Qc2 {[%clk 0:00:23]}  Qa1+ {[%clk 0:00:05]} 36. Kd2 {[%clk 0:00:12]}  Rh2+ {[%clk 0:00:05]} 37. Kd3 {[%clk 0:00:12]}  Qxg1 {[%clk 0:00:05]} 38. Bxg1 {[%clk 0:00:11]}  Rxc2 {[%clk 0:00:03]} 39. Kxc2 {[%clk 0:00:11]}  a5 {[%clk 0:00:03]} 40. Kb3 {[%clk 0:00:09]}  Ka6 {[%clk 0:00:03]} 41. Ka3 {[%clk 0:00:08]}  Kb5 {[%clk 0:00:03]} 42. Kb3 {[%clk 0:00:08]}  a4+ {[%clk 0:00:03]} 43. Ka3 {[%clk 0:00:08]}  Kc4 {[%clk 0:00:04]} 44. Kxa4 {[%clk 0:00:09]}  Kxc3 {[%clk 0:00:04]} 45. Kb5 {[%clk 0:00:09]}  d4 {[%clk 0:00:04]} 46. Kxb6 {[%clk 0:00:09]}  c4 {[%clk 0:00:04]} 47. Kc5 {[%clk 0:00:09]}  d3 {[%clk 0:00:04]} 48. Be3 {[%clk 0:00:06]}  d2 {[%clk 0:00:04]} 49. Bxd2+ {[%clk 0:00:06]}  Kxd2 {[%clk 0:00:04]} 50. Kxc4 {[%clk 0:00:07]}  f4 {[%clk 0:00:05]} 51. Kc5 {[%clk 0:00:07]}  f3 {[%clk 0:00:06]} 52. Kd6 {[%clk 0:00:07]}  f2 {[%clk 0:00:06]} 53. Ke7 {[%clk 0:00:08]}  f1=Q {[%clk 0:00:07]} 54. Kf8 {[%clk 0:00:09]}  Qf5 {[%clk 0:00:08]} 55. Ke7 {[%clk 0:00:09]}  Qxe5 {[%clk 0:00:08]} 0-1


[Site "https://www.chess.com"]

[Event "Titled Tuesday Blitz July 13 2021"]
[White "Dushyant Sharma"]
[Black "Ashwin, Jayaram"]
[WhiteFideId "25065130"]
[BlackFideId "5018137"]
[WhiteElo "2019"]
[BlackElo "2461"]
[Result "1-0"]
[Round "09"]
[TimeControl "180+1"]
[Date "2021.07.13"]
[WhiteClock "0:01:19"]
[BlackClock "0:00:39"]

1. e4 {[%clk 0:03:00]}  c5 {[%clk 0:02:59]} 2. Nf3 {[%clk 0:02:58]}  Nc6 {[%clk 0:02:59]} 3. d4 {[%clk 0:02:59]}  cxd4 {[%clk 0:02:59]} 4. Nxd4 {[%clk 0:02:59]}  g6 {[%clk 0:03:00]} 5. f4 {[%clk 0:02:59]}  Bg7 {[%clk 0:02:57]} 6. Nf3 {[%clk 0:02:59]}  d6 {[%clk 0:02:56]} 7. Nc3 {[%clk 0:02:55]}  Nf6 {[%clk 0:02:56]} 8. Bd3 {[%clk 0:02:55]}  O-O {[%clk 0:02:53]} 9. O-O {[%clk 0:02:53]}  a6 {[%clk 0:02:52]} 10. Kh1 {[%clk 0:02:51]}  b5 {[%clk 0:02:52]} 11. a3 {[%clk 0:02:47]}  Bb7 {[%clk 0:02:51]} 12. Qe1 {[%clk 0:02:39]}  Rc8 {[%clk 0:02:46]} 13. Bd2 {[%clk 0:02:38]}  Nd7 {[%clk 0:02:41]} 14. Qh4 {[%clk 0:02:28]}  e6 {[%clk 0:02:32]} 15. Qh3 {[%clk 0:02:27]}  Nc5 {[%clk 0:02:04]} 16. Rae1 {[%clk 0:02:26]}  b4 {[%clk 0:01:58]} 17. axb4 {[%clk 0:02:08]}  Nxb4 {[%clk 0:01:58]} 18. f5 {[%clk 0:02:05]}  Ncxd3 {[%clk 0:01:52]} 19. cxd3 {[%clk 0:02:04]}  Nxd3 {[%clk 0:01:52]} 20. Ng5 {[%clk 0:02:01]}  h6 {[%clk 0:01:44]} 21. fxg6 {[%clk 0:01:46]}  Nxe1 {[%clk 0:01:34]} 22. gxf7+ {[%clk 0:01:44]}  Rxf7 {[%clk 0:01:19]} 23. Nxf7 {[%clk 0:01:41]}  Qe7 {[%clk 0:01:03]} 24. Nxh6+ {[%clk 0:01:23]}  Bxh6 {[%clk 0:01:00]} 25. Qxh6 {[%clk 0:01:23]}  Nc2 {[%clk 0:00:39]} 26. Rf6 {[%clk 0:01:19]} 1-0


[Site "https://www.chess.com"]

[Event "Titled Tuesday Blitz July 13 2021"]
[White "Golubev, Mikhail"]
[Black "Tronenkovs, Valdis"]
[WhiteFideId "14100983"]
[BlackFideId "11601558"]
[WhiteElo "2374"]
[BlackElo "2232"]
[Result "0-1"]
[Round "09"]
[TimeControl "180+1"]
[Date "2021.07.13"]
[WhiteClock "0:00:05"]
[BlackClock "0:00:06"]

1. e4 {[%clk 0:03:00]}  c5 {[%clk 0:02:53]} 2. Nf3 {[%clk 0:03:00]}  Nc6 {[%clk 0:02:52]} 3. Nc3 {[%clk 0:02:59]}  g6 {[%clk 0:02:51]} 4. d4 {[%clk 0:02:59]}  cxd4 {[%clk 0:02:52]} 5. Nxd4 {[%clk 0:02:59]}  Bg7 {[%clk 0:02:52]} 6. Be3 {[%clk 0:02:59]}  Nf6 {[%clk 0:02:48]} 7. Bc4 {[%clk 0:02:59]}  O-O {[%clk 0:02:48]} 8. Bb3 {[%clk 0:02:59]}  d5 {[%clk 0:02:48]} 9. exd5 {[%clk 0:02:53]}  Na5 {[%clk 0:02:46]} 10. Qf3 {[%clk 0:02:46]}  Bg4 {[%clk 0:02:43]} 11. Qg3 {[%clk 0:02:46]}  Nxb3 {[%clk 0:02:40]} 12. axb3 {[%clk 0:02:20]}  Bh5 {[%clk 0:02:39]} 13. d6 {[%clk 0:01:58]}  Ng4 {[%clk 0:02:30]} 14. O-O-O {[%clk 0:01:02]}  Nxe3 {[%clk 0:02:14]} 15. Qxe3 {[%clk 0:01:01]}  Qa5 {[%clk 0:00:45]} 16. dxe7 {[%clk 0:01:00]}  Rfe8 {[%clk 0:00:42]} 17. f3 {[%clk 0:00:58]}  Bf6 {[%clk 0:00:41]} 18. Kb1 {[%clk 0:00:39]}  Rxe7 {[%clk 0:00:38]} 19. Ne4 {[%clk 0:00:34]}  Bg7 {[%clk 0:00:24]} 20. g4 {[%clk 0:00:34]}  Bxg4 {[%clk 0:00:15]} 21. fxg4 {[%clk 0:00:32]}  Rae8 {[%clk 0:00:16]} 22. Qc3 {[%clk 0:00:28]}  Qd5 {[%clk 0:00:08]} 23. Ng3 {[%clk 0:00:23]}  Rd8 {[%clk 0:00:07]} 24. Nge2 {[%clk 0:00:20]}  Rxe2 {[%clk 0:00:06]} 25. Nxe2 {[%clk 0:00:19]}  Qxd1+ {[%clk 0:00:07]} 26. Rxd1 {[%clk 0:00:16]}  Rxd1+ {[%clk 0:00:08]} 27. Ka2 {[%clk 0:00:16]}  Bxc3 {[%clk 0:00:09]} 28. Nxc3 {[%clk 0:00:16]}  Rh1 {[%clk 0:00:10]} 29. Nd5 {[%clk 0:00:11]}  Rxh2 {[%clk 0:00:09]} 30. c4 {[%clk 0:00:12]}  h5 {[%clk 0:00:08]} 31. gxh5 {[%clk 0:00:11]}  gxh5 {[%clk 0:00:09]} 32. c5 {[%clk 0:00:11]}  h4 {[%clk 0:00:09]} 33. b4 {[%clk 0:00:11]}  h3 {[%clk 0:00:10]} 34. b5 {[%clk 0:00:12]}  Rd2 {[%clk 0:00:08]} 35. Nf6+ {[%clk 0:00:09]}  Kg7 {[%clk 0:00:06]} 36. Ne4 {[%clk 0:00:09]}  Rd4 {[%clk 0:00:05]} 37. Nd6 {[%clk 0:00:04]}  h2 {[%clk 0:00:03]} 38. Nf5+ {[%clk 0:00:04]}  Kf8 {[%clk 0:00:04]} 39. Nxd4 {[%clk 0:00:05]}  h1=Q {[%clk 0:00:04]} 40. Kb3 {[%clk 0:00:05]}  Qd5+ {[%clk 0:00:05]} 41. Kc3 {[%clk 0:00:04]}  Qxc5+ {[%clk 0:00:05]} 42. Kd3 {[%clk 0:00:05]}  Qxd4+ {[%clk 0:00:05]} 43. Kxd4 {[%clk 0:00:05]}  Ke7 {[%clk 0:00:06]} 0-1


[Site "https://www.chess.com"]

[Event "Titled Tuesday Blitz July 13 2021"]
[White "Hryshchenko, Kamila"]
[Black "Tologon tegin, Semetei"]
[WhiteFideId "14147491"]
[BlackFideId "13800574"]
[WhiteElo "1966"]
[BlackElo "2224"]
[Result "0-1"]
[Round "09"]
[TimeControl "180+1"]
[Date "2021.07.13"]
[WhiteClock "0:00:11"]
[BlackClock "0:00:10"]

1. e4 {[%clk 0:03:00]}  c5 {[%clk 0:02:57]} 2. Nf3 {[%clk 0:03:01]}  d6 {[%clk 0:02:58]} 3. Bb5+ {[%clk 0:03:01]}  Nd7 {[%clk 0:02:57]} 4. Bd3 {[%clk 0:03:01]}  Ngf6 {[%clk 0:02:55]} 5. c3 {[%clk 0:03:01]}  g6 {[%clk 0:02:55]} 6. O-O {[%clk 0:03:01]}  Bg7 {[%clk 0:02:56]} 7. Bc2 {[%clk 0:03:01]}  O-O {[%clk 0:02:48]} 8. d4 {[%clk 0:03:01]}  e5 {[%clk 0:02:33]} 9. d5 {[%clk 0:03:01]}  a6 {[%clk 0:02:25]} 10. a4 {[%clk 0:03:01]}  Rb8 {[%clk 0:02:23]} 11. a5 {[%clk 0:03:01]}  Nh5 {[%clk 0:02:20]} 12. Nbd2 {[%clk 0:02:57]}  Nf4 {[%clk 0:02:20]} 13. Nc4 {[%clk 0:02:57]}  Nf6 {[%clk 0:02:14]} 14. Nxd6 {[%clk 0:02:30]}  Qxd6 {[%clk 0:02:12]} 15. Bxf4 {[%clk 0:02:30]}  exf4 {[%clk 0:02:11]} 16. e5 {[%clk 0:02:31]}  Qxd5 {[%clk 0:02:07]} 17. exf6 {[%clk 0:02:30]}  Qxd1 {[%clk 0:02:06]} 18. Rfxd1 {[%clk 0:02:23]}  Bxf6 {[%clk 0:02:07]} 19. Rd5 {[%clk 0:02:17]}  Be7 {[%clk 0:02:02]} 20. Re5 {[%clk 0:02:06]}  Bd6 {[%clk 0:02:00]} 21. Rd5 {[%clk 0:02:06]}  Be7 {[%clk 0:01:59]} 22. Re5 {[%clk 0:02:06]}  Be6 {[%clk 0:01:59]} 23. Re4 {[%clk 0:01:48]}  Bd6 {[%clk 0:01:44]} 24. Ng5 {[%clk 0:01:27]}  Bf5 {[%clk 0:01:43]} 25. Re2 {[%clk 0:01:27]}  Bxc2 {[%clk 0:01:41]} 26. Rxc2 {[%clk 0:01:28]}  Rbd8 {[%clk 0:01:32]} 27. Ne4 {[%clk 0:01:27]}  Be7 {[%clk 0:01:31]} 28. Kf1 {[%clk 0:01:26]}  Rd5 {[%clk 0:01:24]} 29. Ra4 {[%clk 0:01:25]}  Rfd8 {[%clk 0:01:22]} 30. Ke2 {[%clk 0:01:23]}  f5 {[%clk 0:01:18]} 31. Nd2 {[%clk 0:01:23]}  g5 {[%clk 0:01:18]} 32. Nf3 {[%clk 0:01:03]}  h6 {[%clk 0:01:16]} 33. h3 {[%clk 0:01:00]}  Kf7 {[%clk 0:01:15]} 34. Rc4 {[%clk 0:00:56]}  Ke6 {[%clk 0:01:02]} 35. b4 {[%clk 0:00:55]}  cxb4 {[%clk 0:00:58]} 36. cxb4 {[%clk 0:00:55]}  R8d7 {[%clk 0:00:56]} 37. Nd2 {[%clk 0:00:48]}  Rb5 {[%clk 0:00:54]} 38. Rb2 {[%clk 0:00:37]}  Bf6 {[%clk 0:00:46]} 39. Rb3 {[%clk 0:00:33]}  Rbd5 {[%clk 0:00:41]} 40. Rc2 {[%clk 0:00:29]}  g4 {[%clk 0:00:33]} 41. hxg4 {[%clk 0:00:20]}  fxg4 {[%clk 0:00:33]} 42. Ne4 {[%clk 0:00:20]}  Be7 {[%clk 0:00:30]} 43. f3 {[%clk 0:00:18]}  h5 {[%clk 0:00:30]} 44. Rc1 {[%clk 0:00:17]}  Rb5 {[%clk 0:00:23]} 45. Rc4 {[%clk 0:00:16]}  Kf5 {[%clk 0:00:22]} 46. Nc3 {[%clk 0:00:15]}  Re5+ {[%clk 0:00:21]} 47. Re4 {[%clk 0:00:15]}  gxf3+ {[%clk 0:00:20]} 48. gxf3 {[%clk 0:00:15]}  Bf6 {[%clk 0:00:17]} 49. b5 {[%clk 0:00:14]}  axb5 {[%clk 0:00:15]} 50. Rxe5+ {[%clk 0:00:14]}  Bxe5 {[%clk 0:00:15]} 51. Rxb5 {[%clk 0:00:14]}  Ke6 {[%clk 0:00:14]} 52. Ne4 {[%clk 0:00:14]}  Rc7 {[%clk 0:00:14]} 53. Nc5+ {[%clk 0:00:14]}  Kf6 {[%clk 0:00:14]} 54. Nxb7 {[%clk 0:00:14]}  Rc2+ {[%clk 0:00:14]} 55. Kd3 {[%clk 0:00:15]}  Rc3+ {[%clk 0:00:15]} 56. Ke4 {[%clk 0:00:14]}  Re3+ {[%clk 0:00:15]} 57. Kd5 {[%clk 0:00:14]}  Rxf3 {[%clk 0:00:15]} 58. Nc5 {[%clk 0:00:15]}  Re3 {[%clk 0:00:14]} 59. a6 {[%clk 0:00:14]}  f3 {[%clk 0:00:10]} 60. Rb2 {[%clk 0:00:11]}  Bxb2 {[%clk 0:00:10]} 61. Ne4+ {[%clk 0:00:08]}  Rxe4 {[%clk 0:00:09]} 62. Kxe4 {[%clk 0:00:09]}  f2 {[%clk 0:00:10]} 63. a7 {[%clk 0:00:10]}  f1=Q {[%clk 0:00:10]} 64. a8=Q {[%clk 0:00:11]}  Qh1+ {[%clk 0:00:10]} 0-1


[Site "https://www.chess.com"]

[Event "Titled Tuesday Blitz July 13 2021"]
[White "Jarovinsky, Alexey"]
[Black "Zubov, Alexander"]
[WhiteFideId "14115131"]
[BlackFideId "14109409"]
[WhiteElo "2726"]
[BlackElo "3007"]
[Result "1-0"]
[Round "09"]
[TimeControl "180+1"]
[Date "2021.07.13"]
[WhiteClock "0:00:03"]
[BlackClock "0:00:08"]

1. Nc3 {[%clk 0:03:00]}  c5 {[%clk 0:02:55]} 2. e4 {[%clk 0:03:00]}  e6 {[%clk 0:02:53]} 3. g3 {[%clk 0:02:59]}  d5 {[%clk 0:02:53]} 4. Bg2 {[%clk 0:02:58]}  d4 {[%clk 0:02:53]} 5. Nce2 {[%clk 0:02:58]}  e5 {[%clk 0:02:53]} 6. d3 {[%clk 0:02:58]}  Nc6 {[%clk 0:02:53]} 7. f4 {[%clk 0:02:58]}  Bd6 {[%clk 0:02:53]} 8. Nf3 {[%clk 0:02:56]}  Nge7 {[%clk 0:02:50]} 9. O-O {[%clk 0:02:54]}  exf4 {[%clk 0:02:42]} 10. gxf4 {[%clk 0:02:52]}  f5 {[%clk 0:02:42]} 11. e5 {[%clk 0:02:40]}  Bc7 {[%clk 0:02:42]} 12. c4 {[%clk 0:02:34]}  dxc3 {[%clk 0:02:32]} 13. bxc3 {[%clk 0:02:23]}  O-O {[%clk 0:02:28]} 14. Be3 {[%clk 0:02:18]}  b6 {[%clk 0:02:21]} 15. c4 {[%clk 0:02:01]}  Na5 {[%clk 0:01:49]} 16. Rc1 {[%clk 0:01:50]}  Bb7 {[%clk 0:01:43]} 17. d4 {[%clk 0:01:45]}  cxd4 {[%clk 0:01:43]} 18. Nexd4 {[%clk 0:01:43]}  Qc8 {[%clk 0:01:04]} 19. Ng5 {[%clk 0:01:30]}  Bxg2 {[%clk 0:01:03]} 20. Kxg2 {[%clk 0:01:31]}  Qb7+ {[%clk 0:00:50]} 21. Qf3 {[%clk 0:01:29]}  Qxf3+ {[%clk 0:00:50]} 22. Kxf3 {[%clk 0:01:30]}  Rfc8 {[%clk 0:00:50]} 23. Nge6 {[%clk 0:01:18]}  Kf7 {[%clk 0:00:30]} 24. h4 {[%clk 0:01:11]}  Bb8 {[%clk 0:00:23]} 25. Rg1 {[%clk 0:00:52]}  g6 {[%clk 0:00:22]} 26. h5 {[%clk 0:00:39]}  Nxc4 {[%clk 0:00:19]} 27. hxg6+ {[%clk 0:00:38]}  hxg6 {[%clk 0:00:20]} 28. Rh1 {[%clk 0:00:36]}  Kg8 {[%clk 0:00:20]} 29. Rh2 {[%clk 0:00:17]}  Nxe5+ {[%clk 0:00:17]} 30. fxe5 {[%clk 0:00:17]}  Rxc1 {[%clk 0:00:18]} 31. Bxc1 {[%clk 0:00:17]}  Bxe5 {[%clk 0:00:19]} 32. Bf4 {[%clk 0:00:13]}  Bf6 {[%clk 0:00:19]} 33. Bg5 {[%clk 0:00:11]}  Bxg5 {[%clk 0:00:19]} 34. Nxg5 {[%clk 0:00:10]}  Rd8 {[%clk 0:00:18]} 35. Nde6 {[%clk 0:00:07]}  Rd3+ {[%clk 0:00:18]} 36. Kf4 {[%clk 0:00:06]}  Nc6 {[%clk 0:00:11]} 37. Rh6 {[%clk 0:00:05]}  Ne7 {[%clk 0:00:10]} 38. Rh7 {[%clk 0:00:04]}  Nc6 {[%clk 0:00:08]} 39. Rg7+ {[%clk 0:00:04]}  Kh8 {[%clk 0:00:08]} 40. Nf7# {[%clk 0:00:03]} 1-0


[Site "https://www.chess.com"]

[Event "Titled Tuesday Blitz July 13 2021"]
[White "Khusnutdinov, Rustam"]
[Black "Abdusattorov, Nodirbek"]
[WhiteFideId "13701703"]
[BlackFideId "14204118"]
[WhiteElo "2866"]
[BlackElo "2952"]
[Result "0-1"]
[Round "09"]
[TimeControl "180+1"]
[Date "2021.07.13"]
[WhiteClock "0:00:10"]
[BlackClock "0:00:21"]

1. d4 {[%clk 0:03:00]}  Nf6 {[%clk 0:02:59]} 2. c4 {[%clk 0:03:00]}  e6 {[%clk 0:02:59]} 3. Nc3 {[%clk 0:03:00]}  d5 {[%clk 0:02:58]} 4. cxd5 {[%clk 0:02:50]}  Nxd5 {[%clk 0:02:58]} 5. Nf3 {[%clk 0:02:49]}  c5 {[%clk 0:02:54]} 6. e3 {[%clk 0:02:43]}  cxd4 {[%clk 0:02:54]} 7. exd4 {[%clk 0:02:41]}  Nc6 {[%clk 0:02:52]} 8. Bd3 {[%clk 0:02:40]}  Bb4 {[%clk 0:02:53]} 9. Qc2 {[%clk 0:02:27]}  Ba5 {[%clk 0:02:53]} 10. a3 {[%clk 0:02:21]}  h6 {[%clk 0:02:53]} 11. O-O {[%clk 0:02:17]}  O-O {[%clk 0:02:53]} 12. Bh7+ {[%clk 0:02:12]}  Kh8 {[%clk 0:02:53]} 13. Be4 {[%clk 0:02:13]}  Bb6 {[%clk 0:02:42]} 14. Rd1 {[%clk 0:02:10]}  Nce7 {[%clk 0:02:42]} 15. Ne5 {[%clk 0:02:08]}  Bd7 {[%clk 0:02:38]} 16. Qd3 {[%clk 0:02:01]}  Be8 {[%clk 0:02:19]} 17. Qh3 {[%clk 0:01:56]}  Ng8 {[%clk 0:02:18]} 18. Bd2 {[%clk 0:01:44]}  Bxd4 {[%clk 0:01:53]} 19. Ng4 {[%clk 0:01:17]}  f5 {[%clk 0:01:30]} 20. Nxh6 {[%clk 0:01:09]}  Nxh6 {[%clk 0:01:07]} 21. Bxh6 {[%clk 0:01:00]}  Bxf2+ {[%clk 0:01:07]} 22. Kh1 {[%clk 0:00:49]}  Qh4 {[%clk 0:01:03]} 23. Qxh4 {[%clk 0:00:33]}  Bxh4 {[%clk 0:01:04]} 24. Bxd5 {[%clk 0:00:33]}  exd5 {[%clk 0:01:02]} 25. Be3 {[%clk 0:00:34]}  Bf6 {[%clk 0:00:48]} 26. Bd4 {[%clk 0:00:29]}  Bxd4 {[%clk 0:00:45]} 27. Rxd4 {[%clk 0:00:29]}  Bc6 {[%clk 0:00:46]} 28. Rad1 {[%clk 0:00:29]}  Rad8 {[%clk 0:00:42]} 29. Kg1 {[%clk 0:00:29]}  Rfe8 {[%clk 0:00:39]} 30. Kf2 {[%clk 0:00:29]}  Re5 {[%clk 0:00:40]} 31. R1d3 {[%clk 0:00:26]}  Kg8 {[%clk 0:00:40]} 32. b4 {[%clk 0:00:24]}  b6 {[%clk 0:00:40]} 33. Re3 {[%clk 0:00:22]}  Rxe3 {[%clk 0:00:37]} 34. Kxe3 {[%clk 0:00:23]}  Kf7 {[%clk 0:00:37]} 35. Kf4 {[%clk 0:00:17]}  Ke6 {[%clk 0:00:38]} 36. h4 {[%clk 0:00:18]}  Bb7 {[%clk 0:00:37]} 37. g3 {[%clk 0:00:16]}  Rc8 {[%clk 0:00:36]} 38. Rd3 {[%clk 0:00:16]}  Rc4+ {[%clk 0:00:35]} 39. Kg5 {[%clk 0:00:12]}  Rg4+ {[%clk 0:00:35]} 40. Kh5 {[%clk 0:00:12]}  Bc6 {[%clk 0:00:26]} 41. Re3+ {[%clk 0:00:12]}  Kf7 {[%clk 0:00:26]} 42. Ne2 {[%clk 0:00:12]}  d4 {[%clk 0:00:22]} 43. Re5 {[%clk 0:00:10]}  Kf6 {[%clk 0:00:21]} 0-1


[Site "https://www.chess.com"]